[Event "Rapid della Domenica"]
[Site "Chess.com"]
[Date "2020.05.10"]
[Round "3"]
[White "sirmale49"]
[Black "GB86_CHESS"]
[Result "0-1"]
[WhiteElo "1382"]
[BlackElo "1705"]
[TimeControl "720+3"]
[EndTime "7:16:07 PDT"]
[Termination "GB86_CHESS ha vinto per tempo"]

1. b3 {[%clk 0:11:58.4]} 1... e5 {[%clk 0:11:58.4]} 2. Bb2 {[%clk 0:11:59.6]}
2... d6 {[%clk 0:11:56.9]} 3. e3 {[%clk 0:12:00.8]} 3... Be7 {[%clk 0:11:58.5]}
4. Nf3 {[%clk 0:12:00.5]} 4... Bf6 {[%clk 0:12:00.2]} 5. c4 {[%clk 0:12:00.5]}
5... Ne7 {[%clk 0:12:02.2]} 6. d4 {[%clk 0:11:57.9]} 6... exd4 {[%clk
0:12:00.7]} 7. Bxd4 {[%clk 0:11:53.1]} 7... Nf5 {[%clk 0:12:00.4]} 8. Nc3 {[%clk
0:11:30.5]} 8... Nxd4 {[%clk 0:12:00.6]} 9. Nxd4 {[%clk 0:11:29.1]} 9... a6
{[%clk 0:11:47.6]} 10. Qd3 {[%clk 0:11:10.6]} 10... c5 {[%clk 0:11:36.5]} 11.
Qe4+ {[%clk 0:10:45.8]} 11... Qe7 {[%clk 0:11:32.8]} 12. Qxe7+ {[%clk 0:10:43]}
12... Kxe7 {[%clk 0:11:34.8]} 13. Nde2 {[%clk 0:10:41.3]} 13... Nc6 {[%clk
0:11:36.5]} 14. Rc1 {[%clk 0:10:33.8]} 14... Be6 {[%clk 0:11:36.3]} 15. Nf4
{[%clk 0:10:29.7]} 15... Nb4 {[%clk 0:11:36.8]} 16. a3 {[%clk 0:10:23.7]} 16...
Nc6 {[%clk 0:11:38.3]} 17. Nxe6 {[%clk 0:10:23.3]} 17... fxe6 {[%clk 0:11:40]}
18. g3 {[%clk 0:10:14.9]} 18... Rad8 {[%clk 0:11:40.6]} 19. Bg2 {[%clk
0:10:14.9]} 19... Ne5 {[%clk 0:11:24.5]} 20. Ke2 {[%clk 0:09:44.6]} 20... Rd7
{[%clk 0:11:18.1]} 21. Ne4 {[%clk 0:09:36.2]} 21... Rhd8 {[%clk 0:11:17.9]} 22.
Rhd1 {[%clk 0:09:31.4]} 22... b6 {[%clk 0:11:13.3]} 23. f4 {[%clk 0:09:22.5]}
23... Nf7 {[%clk 0:11:05.8]} 24. g4 {[%clk 0:09:06.8]} 24... Bb2 {[%clk
0:11:00.8]} 25. Rc2 {[%clk 0:08:51.7]} 25... Bxa3 {[%clk 0:11:01.5]} 26. Ra2
{[%clk 0:08:48.8]} 26... Bb4 {[%clk 0:11:02.4]} 27. Rxa6 {[%clk 0:08:48.9]}
27... d5 {[%clk 0:11:03.3]} 28. Ng3 {[%clk 0:08:27]} 28... Ba5 {[%clk 0:11:03]}
29. cxd5 {[%clk 0:08:13.1]} 29... exd5 {[%clk 0:11:02.7]} 30. Nf5+ {[%clk
0:08:12.9]} 30... Ke6 {[%clk 0:11:00.7]} 31. Nxg7+ {[%clk 0:08:12.6]} 31... Kf6
{[%clk 0:11:02.5]} 32. Nh5+ {[%clk 0:08:12.2]} 32... Kg6 {[%clk 0:11:02.7]} 33.
Ng3 {[%clk 0:08:00.6]} 33... d4 {[%clk 0:11:02.8]} 34. Be4+ {[%clk 0:07:50.4]}
34... Kf6 {[%clk 0:11:04.1]} 35. g5+ {[%clk 0:07:49]} 35... Nxg5 {[%clk
0:10:35.1]} 36. fxg5+ {[%clk 0:07:45.7]} 36... Kxg5 {[%clk 0:10:37.9]} 37. Bc6
{[%clk 0:07:30.6]} 37... Re7 {[%clk 0:10:36.4]} 38. e4 {[%clk 0:07:17.9]} 38...
h5 {[%clk 0:10:37.1]} 39. h4+ {[%clk 0:07:13.5]} 39... Kf4 {[%clk 0:10:30.7]}
40. Nxh5+ {[%clk 0:07:09.7]} 40... Kg4 {[%clk 0:10:32.3]} 41. Nf6+ {[%clk
0:07:00.3]} 41... Kxh4 {[%clk 0:10:33.5]} 42. Rh1+ {[%clk 0:06:58]} 42... Kg5
{[%clk 0:10:34.1]} 43. e5 {[%clk 0:06:26.8]} 43... Rxe5+ {[%clk 0:10:32.2]} 44.
Ne4+ {[%clk 0:06:27.5]} 44... Kg6 {[%clk 0:10:13.8]} 45. Ra7 {[%clk 0:06:16.5]}
45... d3+ {[%clk 0:10:15]} 46. Kd1 {[%clk 0:06:08]} 46... Kf5 {[%clk 0:09:10.2]}
47. Rh5+ {[%clk 0:06:01.9]} 47... Ke6 {[%clk 0:09:08.1]} 48. Rh6+ {[%clk
0:05:18]} 48... Kf5 {[%clk 0:08:59.6]} 49. Rf7+ {[%clk 0:05:17.7]} 49... Kg4
{[%clk 0:08:57.3]} 50. Rg7+ {[%clk 0:04:59.1]} 50... Kf3 {[%clk 0:08:57]} 51.
Rf6+ {[%clk 0:04:22.5]} 51... Ke3 {[%clk 0:08:56.4]} 52. Rg3+ {[%clk 0:04:18.8]}
52... Kd4 {[%clk 0:08:55.5]} 53. Rf4 {[%clk 0:03:47.2]} 53... Bb4 {[%clk
0:07:22.4]} 54. Nd2+ {[%clk 0:03:21.8]} 54... Kc3 {[%clk 0:07:13.7]} 55. Rc4+
{[%clk 0:03:14.6]} 55... Kb2 {[%clk 0:07:12.8]} 56. Re4 {[%clk 0:02:31.7]} 56...
Rh5 {[%clk 0:06:59.2]} 57. Reg4 {[%clk 0:01:50.5]} 57... Bxd2 {[%clk 0:06:34.5]}
58. Kxd2 {[%clk 0:01:46.2]} 58... Rh2+ {[%clk 0:06:35.7]} 59. Rg2 {[%clk
0:01:46.8]} 59... Rxg2+ {[%clk 0:06:37.4]} 60. Rxg2 {[%clk 0:01:44.3]} 60...
Kxb3 {[%clk 0:06:39.3]} 61. Rg5 {[%clk 0:01:36.3]} 61... Rd6 {[%clk 0:06:36.1]}
62. Bd5+ {[%clk 0:01:36]} 62... c4 {[%clk 0:06:35.7]} 63. Rf5 {[%clk 0:01:28.6]}
63... b5 {[%clk 0:06:36.2]} 64. Re5 {[%clk 0:01:26.2]} 64... Rh6 {[%clk
0:06:28.3]} 65. Bg2 {[%clk 0:01:00.5]} 65... b4 {[%clk 0:06:25.8]} 66. Re1
{[%clk 0:00:45.9]} 66... Rh2 {[%clk 0:06:22.8]} 67. Rg1 {[%clk 0:00:44.1]} 67...
Kb2 {[%clk 0:06:15.6]} 68. Ke3 {[%clk 0:00:08.1]} 68... Kc2 {[%clk 0:06:17.3]}
69. Be4 {[%clk 0:00:06.1]} 69... Re2+ {[%clk 0:06:16.7]} 70. Kd4 {[%clk
0:00:03.9]} 70... Rxe4+ {[%clk 0:06:15.9]} 71. Kxe4 {[%clk 0:00:04.3]} 71... d2
{[%clk 0:06:18]} 72. Rg2 {[%clk 0:00:03.3]} 72... b3 {[%clk 0:06:18.7]} 0-1

[Event "Rapid della Domenica"]
[Site "Chess.com"]
[Date "2020.05.10"]
[Round "3"]
[White "Mrtre7"]
[Black "fisherpez"]
[Result "1-0"]
[WhiteElo "1454"]
[BlackElo "1554"]
[TimeControl "720+3"]
[EndTime "7:16:32 PDT"]
[Termination "Mrtre7 ha vinto per scaccomatto"]

1. d4 {[%clk 0:12:02.9]} 1... e6 {[%clk 0:12:02.9]} 2. c4 {[%clk 0:12:04.7]}
2... Nf6 {[%clk 0:12:01.7]} 3. Nc3 {[%clk 0:12:04.7]} 3... Bb4 {[%clk
0:12:03.5]} 4. e3 {[%clk 0:12:03.9]} 4... Ne4 {[%clk 0:12:03.8]} 5. Qc2 {[%clk
0:11:54.8]} 5... f5 {[%clk 0:11:50.3]} 6. Bd3 {[%clk 0:11:47.8]} 6... Nf6 {[%clk
0:11:42]} 7. Nf3 {[%clk 0:11:09.7]} 7... b6 {[%clk 0:11:40.9]} 8. a3 {[%clk
0:10:49.6]} 8... Be7 {[%clk 0:11:41.2]} 9. O-O {[%clk 0:10:50.3]} 9... Bb7
{[%clk 0:11:42.9]} 10. e4 {[%clk 0:10:44.9]} 10... fxe4 {[%clk 0:11:05.5]} 11.
Nxe4 {[%clk 0:10:45.1]} 11... O-O {[%clk 0:11:06.3]} 12. Nxf6+ {[%clk
0:09:28.1]} 12... Bxf6 {[%clk 0:10:51.4]} 13. Bxh7+ {[%clk 0:09:27.4]} 13... Kh8
{[%clk 0:10:53.5]} 14. Be4 {[%clk 0:08:37.7]} 14... Nc6 {[%clk 0:10:52.6]} 15.
Qe2 {[%clk 0:08:19.4]} 15... Qe8 {[%clk 0:10:23.2]} 16. Ne5 {[%clk 0:07:40.9]}
16... Bxe5 {[%clk 0:10:06.6]} 17. dxe5 {[%clk 0:07:16.4]} 17... Rb8 {[%clk
0:10:00]} 18. Qg4 {[%clk 0:06:22.7]} 18... Rf5 {[%clk 0:06:04]} 19. Bxf5 {[%clk
0:05:00.4]} 19... exf5 {[%clk 0:06:02.3]} 20. Qxf5 {[%clk 0:04:27]} 20... Nxe5
{[%clk 0:05:59]} 21. Bf4 {[%clk 0:03:59]} 21... Nf7 {[%clk 0:05:02.6]} 22. Rfe1
{[%clk 0:03:49.2]} 22... Qf8 {[%clk 0:04:57]} 23. Bxc7 {[%clk 0:03:39.7]} 23...
Rc8 {[%clk 0:04:58.3]} 24. Qxd7 {[%clk 0:03:38.8]} 24... Ba6 {[%clk 0:03:23.7]}
25. Re7 {[%clk 0:03:36.6]} 25... Bxc4 {[%clk 0:03:25.5]} 26. Rae1 {[%clk
0:03:27]} 26... Kh7 {[%clk 0:01:21.2]} 27. R1e4 {[%clk 0:02:18.9]} 27... Bb3
{[%clk 0:00:58.7]} 28. Rh4+ {[%clk 0:02:13.6]} 28... Nh6 {[%clk 0:01:00.1]} 29.
Qd3+ {[%clk 0:01:18]} 29... Kh8 {[%clk 0:00:56.4]} 30. Qd7 {[%clk 0:01:02.9]}
30... Kh7 {[%clk 0:00:55.2]} 31. Rh5 {[%clk 0:00:58.9]} 31... Ba4 {[%clk
0:00:41.8]} 32. Qe6 {[%clk 0:00:48]} 32... Bb3 {[%clk 0:00:31.5]} 33. Qe4+
{[%clk 0:00:44.1]} 33... Kh8 {[%clk 0:00:30.5]} 34. Rxh6+ {[%clk 0:00:39.1]}
34... Kg8 {[%clk 0:00:31]} 35. Qh7# {[%clk 0:00:38.4]} 1-0

[Event "Rapid della Domenica"]
[Site "Chess.com"]
[Date "2020.05.10"]
[Round "4"]
[White "Ollarov"]
[Black "laremaro"]
[Result "1-0"]
[WhiteElo "1990"]
[BlackElo "1642"]
[TimeControl "720+3"]
[EndTime "7:29:21 PDT"]
[Termination "Ollarov ha vinto per abbandono"]

1. e4 {[%clk 0:12:02.9]} 1... d5 {[%clk 0:11:50.7]} 2. exd5 {[%clk 0:12:04.5]}
2... Qxd5 {[%clk 0:11:49.8]} 3. Nc3 {[%clk 0:12:02.1]} 3... Qd6 {[%clk
0:11:51.5]} 4. d4 {[%clk 0:11:52.6]} 4... c6 {[%clk 0:11:52.9]} 5. Nf3 {[%clk
0:11:54.7]} 5... Bg4 {[%clk 0:11:53.3]} 6. Be2 {[%clk 0:11:53.2]} 6... Nf6
{[%clk 0:11:53.1]} 7. O-O {[%clk 0:11:53.5]} 7... e6 {[%clk 0:11:54.1]} 8. Bg5
{[%clk 0:11:52.2]} 8... Be7 {[%clk 0:11:54.5]} 9. Bh4 {[%clk 0:11:53.9]} 9...
Qc7 {[%clk 0:11:56.4]} 10. Ne5 {[%clk 0:11:52.1]} 10... Bxe2 {[%clk 0:11:56.5]}
11. Qxe2 {[%clk 0:11:54.3]} 11... Nbd7 {[%clk 0:11:57.6]} 12. Ne4 {[%clk
0:11:52.5]} 12... Nxe4 {[%clk 0:11:25.3]} 13. Bxe7 {[%clk 0:11:50.3]} 13... Kxe7
{[%clk 0:11:25]} 14. Qxe4 {[%clk 0:11:51.5]} 14... Nxe5 {[%clk 0:11:25.5]} 15.
dxe5 {[%clk 0:11:51.4]} 15... h6 {[%clk 0:11:18.7]} 16. Rfd1 {[%clk 0:11:52.8]}
16... Rhd8 {[%clk 0:11:20.1]} 17. Qe3 {[%clk 0:11:38.1]} 17... b6 {[%clk
0:11:07.2]} 18. Kf1 {[%clk 0:11:38.5]} 18... Rd5 {[%clk 0:10:44.9]} 19. f4
{[%clk 0:11:37.9]} 19... Rad8 {[%clk 0:10:44]} 20. Re1 {[%clk 0:11:27.1]} 20...
Rd2 {[%clk 0:10:32.3]} 21. Re2 {[%clk 0:11:26]} 21... Qd7 {[%clk 0:10:26.3]} 22.
Rae1 {[%clk 0:11:24.3]} 22... Qd5 {[%clk 0:10:12.6]} 23. Rxd2 {[%clk 0:11:22.9]}
23... Qxd2 {[%clk 0:10:13.6]} 24. Qxd2 {[%clk 0:11:21.1]} 24... Rxd2 {[%clk
0:10:14.2]} 25. Re2 {[%clk 0:11:23.7]} 25... Rxe2 {[%clk 0:10:11.2]} 26. Kxe2
{[%clk 0:11:25.9]} 26... h5 {[%clk 0:10:11.9]} 27. g3 {[%clk 0:11:21.8]} 27...
g6 {[%clk 0:10:10.2]} 28. Kd3 {[%clk 0:10:50.4]} 28... Kd7 {[%clk 0:10:10.1]}
29. b4 {[%clk 0:10:43]} 29... b5 {[%clk 0:10:07.3]} 30. Kd4 {[%clk 0:10:40.3]}
30... Kc7 {[%clk 0:09:48.1]} 31. Kc5 {[%clk 0:10:39.1]} 31... Kd7 {[%clk
0:09:46.3]} 32. a3 {[%clk 0:10:34.5]} 32... Kc7 {[%clk 0:09:48]} 33. c3 {[%clk
0:10:25.9]} 33... Kd7 {[%clk 0:09:28.6]} 34. c4 {[%clk 0:10:27.6]} 34... bxc4
{[%clk 0:09:27.6]} 35. Kxc4 {[%clk 0:10:29.9]} 35... Kc7 {[%clk 0:09:29.4]} 36.
Kc5 {[%clk 0:10:26.9]} 36... Kd7 {[%clk 0:09:23.8]} 37. h3 {[%clk 0:10:25.7]}
37... Kc7 {[%clk 0:09:24.5]} 38. a4 {[%clk 0:10:22.8]} 38... Kd7 {[%clk
0:09:14.8]} 39. h4 {[%clk 0:10:19.3]} 39... Kc7 {[%clk 0:09:15.5]} 40. Kc4
{[%clk 0:09:54.1]} 40... Kb6 {[%clk 0:09:11.1]} 41. Kd4 {[%clk 0:09:49.4]} 41...
Kb7 {[%clk 0:08:59.7]} 42. a5 {[%clk 0:09:46.3]} 42... Kc7 {[%clk 0:08:54.9]}
43. Ke4 {[%clk 0:09:12.7]} 43... Kb7 {[%clk 0:08:45.5]} 44. f5 {[%clk 0:09:00]}
44... exf5+ {[%clk 0:08:23.3]} 45. Kf4 {[%clk 0:09:00]} 45... Kc7 {[%clk
0:08:25.4]} 46. Kg5 {[%clk 0:08:59.2]} 46... Kd7 {[%clk 0:08:12.4]} 47. Kf6
{[%clk 0:08:56.9]} 47... Ke8 {[%clk 0:08:11.4]} 48. e6 {[%clk 0:08:58.1]} 48...
fxe6 {[%clk 0:08:12]} 49. Kxe6 {[%clk 0:08:56.2]} 49... g5 {[%clk 0:08:08.6]}
50. Kxf5 {[%clk 0:08:52.9]} 1-0

[Event "Rapid della Domenica"]
[Site "Chess.com"]
[Date "2020.05.10"]
[Round "4"]
[White "pedrak"]
[Black "ferrariand"]
[Result "1-0"]
[WhiteElo "1691"]
[BlackElo "1534"]
[TimeControl "720+3"]
[EndTime "7:29:51 PDT"]
[Termination "pedrak ha vinto per abbandono"]

1. d4 {[%clk 0:12:02.9]} 1... d5 {[%clk 0:12:00.4]} 2. Nf3 {[%clk 0:12:04.5]}
2... Nf6 {[%clk 0:11:54.8]} 3. Bf4 {[%clk 0:11:58.3]} 3... Bf5 {[%clk
0:11:38.3]} 4. e3 {[%clk 0:11:59.1]} 4... e6 {[%clk 0:11:28.6]} 5. Bd3 {[%clk
0:12:00.1]} 5... Bg6 {[%clk 0:11:24.8]} 6. O-O {[%clk 0:12:00.1]} 6... Bd6
{[%clk 0:11:20.1]} 7. Ne5 {[%clk 0:11:59.6]} 7... O-O {[%clk 0:11:14]} 8. Qe2
{[%clk 0:11:51.6]} 8... h6 {[%clk 0:10:55.8]} 9. Nxg6 {[%clk 0:11:39.5]} 9...
fxg6 {[%clk 0:10:55]} 10. Bxg6 {[%clk 0:11:35.9]} 10... Bxf4 {[%clk 0:10:52.6]}
11. exf4 {[%clk 0:11:36.6]} 11... Qd6 {[%clk 0:10:39.1]} 12. g3 {[%clk
0:11:36.7]} 12... Nc6 {[%clk 0:10:38]} 13. c3 {[%clk 0:11:37.8]} 13... Ne7
{[%clk 0:10:22.5]} 14. Bc2 {[%clk 0:11:37.5]} 14... Rae8 {[%clk 0:10:18.7]} 15.
Nd2 {[%clk 0:11:38.6]} 15... Nf5 {[%clk 0:10:19.1]} 16. Nf3 {[%clk 0:11:35.3]}
16... Nd7 {[%clk 0:10:15]} 17. Ne5 {[%clk 0:11:35.7]} 17... Nxe5 {[%clk
0:10:15.7]} 18. fxe5 {[%clk 0:11:37.1]} 18... Qe7 {[%clk 0:10:06.3]} 19. Rae1
{[%clk 0:11:16.1]} 19... Qg5 {[%clk 0:10:06.2]} 20. f4 {[%clk 0:11:06.8]} 20...
Qe7 {[%clk 0:09:49.4]} 21. Qh5 {[%clk 0:10:58.1]} 21... Qf7 {[%clk 0:09:03.7]}
22. Qxf7+ {[%clk 0:10:34.1]} 22... Rxf7 {[%clk 0:09:03.2]} 23. Bxf5 {[%clk
0:10:35.5]} 23... Rxf5 {[%clk 0:09:02.3]} 24. g4 {[%clk 0:10:36.1]} 24... Rf7
{[%clk 0:08:59.3]} 25. Rf3 {[%clk 0:10:33]} 25... Ref8 {[%clk 0:08:58.8]} 26.
Ref1 {[%clk 0:10:34.3]} 26... g5 {[%clk 0:08:55.7]} 27. f5 {[%clk 0:10:34.9]}
27... exf5 {[%clk 0:08:56.5]} 28. gxf5 {[%clk 0:10:36.1]} 28... h5 {[%clk
0:08:34.4]} 29. Kg2 {[%clk 0:10:23.7]} 29... g4 {[%clk 0:08:11.6]} 30. Rf4
{[%clk 0:10:23.4]} 30... Kg7 {[%clk 0:08:03.9]} 31. Kg3 {[%clk 0:10:23.5]} 31...
Kh6 {[%clk 0:08:02.7]} 32. Kh4 {[%clk 0:10:24.5]} 32... Rg8 {[%clk 0:06:04]} 33.
f6 {[%clk 0:10:22.5]} 33... Kg6 {[%clk 0:05:42.9]} 34. e6 {[%clk 0:10:16]} 34...
Rh7 {[%clk 0:05:30.1]} 35. f7 {[%clk 0:10:16.3]} 35... Rf8 {[%clk 0:04:40.2]}
36. e7 {[%clk 0:10:10.8]} 1-0

[Event "Rapid della Domenica"]
[Site "Chess.com"]
[Date "2020.05.10"]
[Round "4"]
[White "GB86_CHESS"]
[Black "crippo"]
[Result "1-0"]
[WhiteElo "1720"]
[BlackElo "1502"]
[TimeControl "720+3"]
[EndTime "7:31:40 PDT"]
[Termination "GB86_CHESS ha vinto per abbandono"]

1. e4 {[%clk 0:12:02.9]} 1... e5 {[%clk 0:12:01.4]} 2. Nf3 {[%clk 0:12:04.1]}
2... Nc6 {[%clk 0:12:02.5]} 3. Bb5 {[%clk 0:12:05.4]} 3... d6 {[%clk 0:12:04.2]}
4. O-O {[%clk 0:12:04.9]} 4... Be7 {[%clk 0:12:03.9]} 5. d4 {[%clk 0:12:05.7]}
5... exd4 {[%clk 0:12:04]} 6. Nxd4 {[%clk 0:11:57.1]} 6... Bd7 {[%clk
0:12:04.9]} 7. Be3 {[%clk 0:11:50.6]} 7... Nf6 {[%clk 0:12:02.3]} 8. Nc3 {[%clk
0:11:48.2]} 8... O-O {[%clk 0:12:03.1]} 9. Nxc6 {[%clk 0:11:36.6]} 9... bxc6
{[%clk 0:12:04]} 10. Bd3 {[%clk 0:11:37.4]} 10... Ng4 {[%clk 0:12:04.7]} 11. Bd2
{[%clk 0:11:24.8]} 11... Bf6 {[%clk 0:12:00.9]} 12. f3 {[%clk 0:11:24.3]} 12...
Ne5 {[%clk 0:11:55.1]} 13. Be2 {[%clk 0:11:24]} 13... Ng6 {[%clk 0:11:52.3]} 14.
Bd3 {[%clk 0:10:30.3]} 14... Bd4+ {[%clk 0:11:52.6]} 15. Kh1 {[%clk 0:10:31.3]}
15... Ne5 {[%clk 0:11:51.9]} 16. Be2 {[%clk 0:10:22.3]} 16... Bb6 {[%clk
0:11:51.9]} 17. f4 {[%clk 0:10:16.4]} 17... Ng4 {[%clk 0:11:49.7]} 18. Bxg4
{[%clk 0:10:16.4]} 18... f5 {[%clk 0:11:47.9]} 19. Bf3 {[%clk 0:10:13.1]} 19...
Qh4 {[%clk 0:11:44.3]} 20. Qe1 {[%clk 0:10:10.7]} 20... Qh6 {[%clk 0:11:46]} 21.
e5 {[%clk 0:10:02.8]} 21... Rae8 {[%clk 0:11:37.3]} 22. Na4 {[%clk 0:09:58.8]}
22... d5 {[%clk 0:11:21.2]} 23. Nxb6 {[%clk 0:09:53.1]} 23... axb6 {[%clk
0:11:22.3]} 24. Qg3 {[%clk 0:09:31]} 24... g6 {[%clk 0:11:16.6]} 25. Rae1 {[%clk
0:09:29.9]} 25... Be6 {[%clk 0:11:17.2]} 26. c4 {[%clk 0:09:28.9]} 26... Ra8
{[%clk 0:11:12.1]} 27. a3 {[%clk 0:09:28.3]} 27... Ra4 {[%clk 0:11:13.1]} 28.
cxd5 {[%clk 0:09:22.5]} 28... cxd5 {[%clk 0:11:14.3]} 29. Bd1 {[%clk 0:09:17.1]}
29... Rd4 {[%clk 0:10:56.6]} 30. Qe3 {[%clk 0:09:08]} 30... Rc4 {[%clk
0:10:47.3]} 31. Bb3 {[%clk 0:09:04.3]} 31... Re4 {[%clk 0:10:48.9]} 32. Qc3
{[%clk 0:08:55.9]} 32... c5 {[%clk 0:10:50.4]} 33. Rxe4 {[%clk 0:08:51.2]} 33...
fxe4 {[%clk 0:10:49.3]} 34. Qg3 {[%clk 0:08:47]} 34... Qh5 {[%clk 0:10:37.9]}
35. Bd1 {[%clk 0:08:46.3]} 35... Qf5 {[%clk 0:10:34.1]} 36. h3 {[%clk
0:08:48.3]} 36... Qf7 {[%clk 0:10:30.7]} 37. Qg5 {[%clk 0:08:42.1]} 37... d4
{[%clk 0:10:27]} 38. g4 {[%clk 0:08:39.7]} 38... e3 {[%clk 0:10:27.3]} 39. f5
{[%clk 0:08:41.3]} 39... Bd5+ {[%clk 0:10:27]} 40. Kh2 {[%clk 0:08:37.8]} 40...
exd2 {[%clk 0:10:19.8]} 41. e6 {[%clk 0:08:33]} 41... Qf6 {[%clk 0:10:17.8]} 42.
Qxd2 {[%clk 0:08:19.1]} 42... Bxe6 {[%clk 0:10:13.4]} 43. Qe1 {[%clk 0:08:13]}
43... Bd5 {[%clk 0:10:13.1]} 44. Kg1 {[%clk 0:08:12.3]} 44... g5 {[%clk
0:09:53.3]} 45. a4 {[%clk 0:07:57.3]} 45... Kg7 {[%clk 0:09:52]} 46. a5 {[%clk
0:07:58.6]} 46... Rf7 {[%clk 0:09:50.5]} 47. axb6 {[%clk 0:07:58.8]} 47... Qxb6
{[%clk 0:09:52]} 48. Qe5+ {[%clk 0:07:57.4]} 48... Rf6 {[%clk 0:09:39.1]} 49.
Qxd5 {[%clk 0:07:56.9]} 49... Rd6 {[%clk 0:09:32.2]} 50. Qe5+ {[%clk 0:07:53.1]}
50... Rf6 {[%clk 0:09:32.6]} 51. b3 {[%clk 0:07:52.4]} 51... d3 {[%clk
0:09:30.2]} 52. Qe3 {[%clk 0:07:53.7]} 52... Qd6 {[%clk 0:09:24.8]} 53. Qxg5+
{[%clk 0:07:51.9]} 53... Kf8 {[%clk 0:09:17.4]} 54. Qf4 {[%clk 0:07:50.9]} 54...
Qb6 {[%clk 0:09:11.9]} 55. Qc4 {[%clk 0:07:41.2]} 55... Qd6 {[%clk 0:09:11.8]}
56. Rf3 {[%clk 0:07:34]} 56... d2 {[%clk 0:09:12]} 57. Rd3 {[%clk 0:07:31.2]}
57... Qe5 {[%clk 0:09:11.7]} 58. Qd5 {[%clk 0:07:14.7]} 58... Qe1+ {[%clk
0:09:09.5]} 59. Kg2 {[%clk 0:07:12]} 59... Kg7 {[%clk 0:09:11.4]} 60. Rxd2
{[%clk 0:07:08.6]} 60... h6 {[%clk 0:09:00.4]} 61. Re2 {[%clk 0:07:08.3]} 61...
Qb4 {[%clk 0:08:51.8]} 62. Re7+ {[%clk 0:07:07.4]} 62... Kh8 {[%clk 0:08:53.6]}
63. Qd8+ {[%clk 0:07:05.6]} 1-0

[Event "Rapid della Domenica"]
[Site "Chess.com"]
[Date "2020.05.10"]
[Round "4"]
[White "Carbon"]
[Black "BAKR1980"]
[Result "0-1"]
[WhiteElo "1740"]
[BlackElo "1723"]
[TimeControl "720+3"]
[EndTime "7:35:26 PDT"]
[Termination "BAKR1980 ha vinto per abbandono"]

1. e4 {[%clk 0:12:02.9]} 1... d6 {[%clk 0:11:47.6]} 2. d4 {[%clk 0:12:02.7]}
2... Nf6 {[%clk 0:11:38.1]} 3. Nc3 {[%clk 0:12:02.5]} 3... e5 {[%clk 0:11:34.8]}
4. Nf3 {[%clk 0:12:01.5]} 4... Nbd7 {[%clk 0:11:31.7]} 5. Bc4 {[%clk 0:11:32.1]}
5... Be7 {[%clk 0:11:26.2]} 6. O-O {[%clk 0:11:24.5]} 6... O-O {[%clk
0:11:19.8]} 7. Re1 {[%clk 0:11:25.2]} 7... c6 {[%clk 0:11:16.1]} 8. a4 {[%clk
0:11:17.8]} 8... exd4 {[%clk 0:11:10.4]} 9. Nxd4 {[%clk 0:11:16.2]} 9... Ne5
{[%clk 0:11:04.4]} 10. Be2 {[%clk 0:10:57.4]} 10... d5 {[%clk 0:10:34]} 11. f4
{[%clk 0:10:30.7]} 11... Nc4 {[%clk 0:10:25.9]} 12. e5 {[%clk 0:10:18.2]} 12...
Bc5 {[%clk 0:09:49.6]} 13. Kh1 {[%clk 0:09:15]} 13... Ng4 {[%clk 0:09:18.3]} 14.
Bxg4 {[%clk 0:08:57.8]} 14... Bxg4 {[%clk 0:09:12.8]} 15. Nf3 {[%clk 0:08:17]}
15... f6 {[%clk 0:08:50.8]} 16. b3 {[%clk 0:07:37.3]} 16... Bb4 {[%clk
0:08:41.4]} 17. Qd3 {[%clk 0:07:20.1]} 17... fxe5 {[%clk 0:08:21.6]} 18. fxe5
{[%clk 0:07:01.1]} 18... Bf5 {[%clk 0:08:12.7]} 19. Qd4 {[%clk 0:06:48]} 19...
Qb6 {[%clk 0:07:51.4]} 20. bxc4 {[%clk 0:05:11.3]} 20... Qxd4 {[%clk 0:07:38.8]}
21. Nxd4 {[%clk 0:05:12.9]} 21... Bxc3 {[%clk 0:07:32.9]} 22. Ba3 {[%clk
0:04:42.8]} 22... Bxd4 {[%clk 0:07:24.5]} 23. Rad1 {[%clk 0:04:42]} 23... Bc3
{[%clk 0:07:18.4]} 24. Re3 {[%clk 0:04:25.5]} 24... Bxc2 {[%clk 0:07:11.6]} 25.
Rc1 {[%clk 0:03:25.4]} 25... Bd2 {[%clk 0:07:03]} 26. Ree1 {[%clk 0:03:23.7]}
26... dxc4 {[%clk 0:06:49.5]} 27. Bxf8 {[%clk 0:03:22.9]} 27... Rxf8 {[%clk
0:06:44.3]} 28. Kg1 {[%clk 0:03:11.3]} 28... Bxe1 {[%clk 0:06:37.9]} 29. Rxe1
{[%clk 0:03:11.8]} 29... Bxa4 {[%clk 0:06:32.3]} 30. e6 {[%clk 0:03:11.7]} 30...
b5 {[%clk 0:06:26.7]} 31. h3 {[%clk 0:03:09.2]} 31... c3 {[%clk 0:06:20.2]} 32.
e7 {[%clk 0:02:58.6]} 32... Re8 {[%clk 0:06:14.3]} 0-1